fUST/lending_fUST_20241216
["ID","MTS","AMOUNT","RATE_DAILY","PERIOD"]
[345556828,1734348642961,-87000.0,0.00025,2]
[345556829,1734348642971,-151.0,0.00025,7]
[345556830,1734348642980,-151.0,0.00025,7]
[345556831,1734348642989,-503.201724,0.00025,7]
[345556832,1734348643000,-503.201724,0.00025,7]
[345556833,1734348643015,-151.0,0.00025,7]
[345556834,1734348643024,-151.0,0.00025,7]
[345556835,1734348643034,-503.201724,0.00025,7]
[345556836,1734348643045,-503.201724,0.00025,7]
[345556837,1734348643055,-151.0,0.00025,7]
[345556838,1734348643066,-151.0,0.00025,7]
[345556839,1734348643076,-151.0,0.00025,7]
[345556840,1734348643085,-151.0,0.00025,7]
[345556841,1734348643095,-151.0,0.00025,7]
[345556842,1734348643104,-151.0,0.00025,7]
[345556843,1734348643113,-151.0,0.00025,7]
[345556844,1734348643123,-151.0,0.00025,7]
[345556845,1734348643136,-151.0,0.00025,7]
[345556846,1734348643145,-151.0,0.00025,7]
[345556847,1734348643154,-167.50520009,0.00025,7]
[345556848,1734348643166,-417.23416,0.00025,7]
[345556849,1734348643176,-417.23416,0.00025,7]
[345556850,1734348643185,-417.23416,0.00025,7]
[345556851,1734348643195,-417.23416,0.00025,7]
[345556852,1734348643206,-236.743915,0.00025,7]
[345556853,1734348643216,-236.743915,0.00025,7]
[345556854,1734348643225,-151.0,0.00025,7]
[345556855,1734348643235,-151.0,0.00025,7]
[345556856,1734348643244,-151.0,0.00025,7]
[345556857,1734348643254,-151.0,0.00025,7]
[345556858,1734348643267,-177.204315,0.00025,7]
[345556859,1734348643276,-236.743915,0.00025,7]
[345556860,1734348643285,-236.743915,0.00025,7]
[345556861,1734348643298,-151.0,0.00025,7]
[345556863,1734348643314,-250.359701,0.00025,7]
[345556864,1734348643330,-627.652023,0.00025,7]
[345556865,1734348643343,-627.652023,0.00025,7]
[345556866,1734348643358,-627.652023,0.00025,7]
[345556867,1734348643372,-627.652023,0.00025,7]
[345556869,1734348643388,-975.128509,0.00025,7]
[345556872,1734348643403,-975.128509,0.00025,7]
[345556875,1734348643418,-151.0,0.00025,7]
[345556877,1734348643433,-151.0,0.00025,7]
[345556880,1734348643447,-151.0,0.00025,7]
[345556882,1734348643459,-161.093398,0.00025,7]
[345556885,1734348643475,-975.128509,0.00025,7]
[345556887,1734348643489,-975.128509,0.00025,7]
[345556889,1734348643500,-151.0,0.00025,7]
[345556892,1734348643516,-151.0,0.00025,7]
[345556895,1734348643531,-151.0,0.00025,7]
[345556897,1734348643544,-151.0,0.00025,7]
[345556900,1734348643559,-151.0,0.00025,7]
[345556902,1734348643575,-846.081149,0.00025,7]
[345556905,1734348643590,-846.081149,0.00025,7]
[345556908,1734348643604,-846.081149,0.00025,7]
[345556910,1734348643615,-846.081149,0.00025,7]
[345556912,1734348643627,-175078.42371212,0.00025,2]
[345556915,1734348643643,-3450.14625203,0.00025,2]
[345556918,1734348643658,-832.76803853,0.00025,2]
[345556920,1734348643669,-9009.5097265,0.00025,2]
[345556922,1734348643681,-575.31878,0.00025,7]
[345556925,1734348643695,-575.31878,0.00025,7]
[345556927,1734348643708,-255.644481,0.00025,7]
[345556929,1734348643719,-255.644481,0.00025,7]
[345556931,1734348643732,-575.31878,0.00025,7]
[345556932,1734348643745,-575.31878,0.00025,7]
[345556934,1734348643757,-255.644481,0.00025,7]
[345556937,1734348643770,-255.644481,0.00025,7]
[345556938,1734348643782,-151.0,0.00025,7]
[345556939,1734348643795,-151.0,0.00025,7]
[345556940,1734348643807,-175.0,0.00025,2]
[345556941,1734348643820,-542.873493,0.00025,7]
[345556942,1734348643832,-542.873493,0.00025,7]
[345556944,1734348643845,-542.873493,0.00025,7]
[345556945,1734348643858,-542.873493,0.00025,7]
[345556946,1734348643870,-200.87803,0.00025,7]
[345556947,1734348643883,-200.87803,0.00025,7]
[345556948,1734348643896,-200.87803,0.00025,7]
[345556949,1734348643909,-200.87803,0.00025,7]
[345556950,1734348643921,-224.775,0.00025071,2]
[345556951,1734348643933,-675.065,0.0002517,2]
[345556952,1734348643946,-19064.3985152,0.00025181,11]
[345556953,1734348643959,-236.743915,0.00025281,7]
[345556954,1734348643972,-199.041084,0.00025281,7]
[345556955,1734348643985,-151.0,0.00025281,7]
[345556956,1734348643997,-177.204315,0.00025281,7]
[345556957,1734348644011,-236.743915,0.00025281,7]
[345556958,1734348644024,-627.652023,0.00025281,7]
[345556959,1734348644037,-627.652023,0.00025281,7]
[345556960,1734348644050,-975.128509,0.00025281,7]
[345556961,1734348644063,-975.128509,0.00025281,7]
[345556962,1734348644076,-151.0,0.00025281,7]
[345556963,1734348644090,-151.0,0.00025281,7]
[345556964,1734348644104,-846.081149,0.00025281,7]
[345556965,1734348644118,-846.081149,0.00025281,7]
[345556966,1734348644134,-575.31878,0.00025281,7]
[345556967,1734348644146,-255.644481,0.00025281,7]
[345556968,1734348644160,-575.31878,0.00025281,7]
[345556969,1734348644172,-255.644481,0.00025281,7]
[345556970,1734348644185,-151.0,0.00025281,7]
[345556971,1734348644198,-542.873493,0.00025281,7]
[345556972,1734348644208,-542.873493,0.00025281,7]
[345556973,1734348644351,-200.87803,0.00025281,7]
[345556974,1734348644362,-200.87803,0.00025281,7]
[345556975,1734348644371,-1438.81412052,0.00025285,2]
[345556976,1734348644382,-192.0,0.00025319,2]
[345556977,1734348644391,-600.87138377,0.00025321,2]
[345556978,1734348644401,-502.99118708,0.00025321,2]
[345556979,1734348644412,-503.13984324,0.00025321,2]
[345556980,1734348644422,-1000.0,0.00025321,2]
[345556981,1734348644432,-1000.0,0.00025321,2]
[345556982,1734348644441,-250.62874063,0.00025321,2]
[345556983,1734348644451,-151.0,0.00025321,7]
[345556984,1734348644461,-9647.046686,0.00025473,2]
[345556985,1734348644471,-9647.046686,0.00025494,2]
[345556986,1734348644481,-10757.32615532,0.0002561,120]
[345556987,1734348644490,-6084.89987528,0.00025638,7]
[345556988,1734348644500,-166.1,0.00025705,3]
[345556989,1734348644511,-417.23416,0.00025735,7]
[345556990,1734348644521,-417.23416,0.00025735,7]
[345556991,1734348644530,-400.0,0.00025753,2]
[345556992,1734348644539,-420.0,0.00025804,2]
[345556993,1734348644549,-1438.81412052,0.00025873,2]
[345556994,1734348644559,-175.0,0.0002589,2]
[345556995,1734348644568,-9647.04668601,0.00025897,2]
[345556996,1734348644578,-500.0,0.00025973,2]
[345556997,1734348644588,-167.0,0.00025976,3]
[345556998,1734348644598,-165.0,0.00025985,3]
[345556999,1734348644608,-167.98,0.00025985,3]
[345557000,1734348644618,-114602.21450287,0.00026,20]
[345557001,1734348644627,-72010.32862594,0.00026,30]
[345557002,1734348644647,-12476.14670466,0.00026,30]
[345557003,1734348644659,-36505.7630346,0.00026,30]
[345557004,1734348644725,-297643.887915,0.00026,30]
[345557005,1734348644793,-215.497519,0.00024797,7]
[345557006,1734348644803,-766.513668,0.00024797,7]
[345557007,1734348644812,-151.0,0.00024797,7]
[345557008,1734348644822,-215.497519,0.00024798,7]
[345557009,1734348644831,-766.513668,0.00024798,7]
[345557010,1734348644841,-215.497519,0.00025,7]
[345557011,1734348644851,-766.513668,0.00025,7]
[345557012,1734348644860,-215.497519,0.00025,7]
[345557013,1734348644870,-766.513668,0.00025,7]
[345557014,1734348644880,-38225.2390158,0.00026,30]
[345557015,1734348644889,-2482.0586502,0.00026,2]
[345557016,1734348644898,-1809.63866232,0.00026,30]
[345557017,1734348644908,-5741.51892368,0.00026,3]
[345557018,1734348645066,-2815.88821152,0.00024317,2]
[345557019,1734348645076,-215.497519,0.00024797,7]
[345557020,1734348645086,-766.513668,0.00024797,7]
[345557021,1734348645095,-151.0,0.00024798,7]
[345557022,1734348645105,-215.497519,0.00024798,7]
[345557023,1734348645115,-151.0,0.00025,7]
[345557024,1734348645124,-151.0,0.00025,7]
[345557025,1734348645139,-215.497519,0.00025281,7]
[345557026,1734348645148,-766.513668,0.00025281,7]
[345557027,1734348645159,-151.0,0.00025281,7]
[345557028,1734348645170,-60693.12862191,0.00026,3]
[345557029,1734348645179,-788.7,0.00026,15]
[345557030,1734348645189,-6286.739625,0.00026125,2]
[345557031,1734348645199,-420.0,0.00026168,2]
[345557032,1734348645210,-151.0,0.00026178,7]
[345557033,1734348645221,-151.0,0.00026178,7]
[345557034,1734348645231,-846.081149,0.00026178,7]
[345557035,1734348645240,-846.081149,0.00026178,7]
[345557036,1734348645250,-575.31878,0.00026178,7]
[345557037,1734348645262,-255.644481,0.00026178,7]
[345557038,1734348645271,-575.31878,0.00026178,7]
[345557039,1734348645280,-255.644481,0.00026178,7]
[345557040,1734348645289,-295.072319,0.00026178,7]
[345557041,1734348645299,-542.873493,0.00026178,7]
[345557042,1734348645309,-542.873493,0.00026178,7]
[345557043,1734348645319,-200.87803,0.00026178,7]
[345557044,1734348645328,-200.87803,0.00026178,7]
[345557045,1734348645337,-215.497519,0.00026178,7]
[345557046,1734348645346,-766.513668,0.00026178,7]
[345557047,1734348645356,-151.0,0.00026178,7]
[345557048,1734348645366,-122872.36140453,0.000262,2]
[345557064,1734348831332,40000.0,0.00023,30]
[345557065,1734348831361,192653.83,0.00023,30]
[345557068,1734348950626,166.173936,0.00013973,2]
[345557070,1734349224840,40000.0,0.0001,2]
[345557126,1734349838244,-500.0,0.00021997,2]
[345557127,1734349838253,-250.0,0.00022595,2]
[345557128,1734349838263,-300.0,0.00022999,2]
[345557129,1734349838272,-4123.07654945,0.00023,30]
[345557130,1734349838396,-68272.07142095,0.00023,30]
[345557131,1734349838406,-163.065246,0.00023026,2]
[345557132,1734349838416,-500.0,0.00023155,2]
[345557133,1734349838425,-170.35008,0.00023301,2]
[345557134,1734349838435,-152.0,0.00023555,2]
[345557135,1734349838444,-4855.3720813,0.00023845,2]
[345557136,1734349838453,-2632.95180498,0.00023932,2]
[345557137,1734349838462,-24247.65119138,0.00024,2]
[345557138,1734349838582,-500.0,0.00024374,2]
[345557139,1734349838592,-171.951,0.00024615,7]
[345557140,1734349838602,-152.082776,0.00024797,7]
[345557141,1734349838612,-496.0,0.00024932,2]
[345557142,1734349838622,-8294.31706873,0.00024992,2]
[345557143,1734349838632,-496.0,0.00025,2]
[345557144,1734349838641,-175.0,0.00025,2]
[345557145,1734349838651,-675.294,0.0002517,2]
[345557146,1734349838661,-420.0,0.00025299,2]
[345557147,1734349838670,-8294.31706873,0.00025436,2]
[345557148,1734349838680,-300.0,0.00025499,2]
[345557149,1734349838694,-500.0,0.00025592,2]
[345557150,1734349838704,-8294.31706873,0.00025669,2]
[345557151,1734349838720,-400.0,0.00025753,2]
[345557152,1734349838729,-600.0,0.000258,2]
[345557153,1734349838739,-496.0,0.0002589,2]
[345557154,1734349838749,-175.0,0.0002589,2]
[345557155,1734349838759,-600.87138377,0.00025925,2]
[345557156,1734349838768,-8294.31706873,0.00025959,2]
[345557157,1734349838778,-500.0,0.00026,7]
[345557158,1734349838788,-500.0,0.00026,7]
[345557159,1734349838798,-500.0,0.00026,7]
[345557160,1734349838808,-500.0,0.00026,7]
[345557161,1734349838817,-500.0,0.00026,7]
[345557162,1734349838827,-500.0,0.00026,7]
[345557163,1734349838837,-500.0,0.00026,7]
[345557164,1734349838846,-500.0,0.00026,7]
[345557165,1734349838856,-500.0,0.00026,7]
[345557166,1734349838865,-500.0,0.00026,7]
[345557167,1734349838875,-500.0,0.00026,7]
[345557168,1734349838885,-559.67,0.00026,7]
[345557169,1734349838894,-5029.3917,0.00026125,2]
[345557170,1734349838904,-9076.2460061,0.000262,2]
[345557171,1734349838917,-297598.52329965,0.000262,2]
[345557172,1734349838929,-224856.112085,0.000262,2]
[345557173,1734349838941,-34029.93306064,0.000262,2]
[345557311,1734349846182,-3129.0,0.00022121,11]
[345557455,1734351032163,-3163.55711265,0.00021463,2]
[345557456,1734351032173,-300.0,0.0002212,2]
[345557458,1734351032183,-300.0,0.0002212,2]
[345557460,1734351032193,-650.25561345,0.00022121,11]
[345557464,1734351032218,-10400.0,0.00022121,11]
[345557528,1734351038212,-4885.14290175,0.00022121,11]
[345557529,1734351038223,-584.27481225,0.00023092,2]
[345557530,1734351038233,-967.9263791,0.00023192,2]
[345557531,1734351038242,-175.213978,0.00023363,2]
[345557532,1734351038252,-250.0,0.00023468,2]
[345557533,1734351038261,-280.7778225,0.00023792,2]
[345557534,1734351038273,-420.0,0.00024034,2]
[345557535,1734351038283,-420.0,0.00024332,2]
[345557536,1734351038292,-171.951,0.00024604,7]
[345557537,1734351038301,-2222.7131064,0.00024668,2]
[345557538,1734351038328,-1412.84572313,0.00024668,2]
[345557539,1734351038339,-2292.10565906,0.00024668,2]
[345557540,1734351038351,-11819.00000037,0.00024668,2]
[345557541,1734351038363,-2143.6,0.00024668,2]
[345557557,1734351040155,-5009.73551104,0.00024668,2]
[345557558,1734351040166,-2483.49370378,0.00024719,2]
[345557559,1734351040175,-186.204663,0.00024819,2]
[345557560,1734351040185,-646.999,0.0002489,2]
[345557561,1734351040195,-310.0,0.00024932,2]
[345557562,1734351040205,-310.0,0.00025,2]
[345557563,1734351040215,-175.0,0.00025,2]
[345557564,1734351040224,-1835.3155764,0.00025071,2]
[345557565,1734351040234,-2483.49370378,0.0002546,2]
[345557566,1734351040244,-400.0,0.00025753,2]
[345557567,1734351040254,-310.0,0.0002589,2]
[345557568,1734351040266,-587.0,0.00026113,2]
[345557569,1734351040276,-4023.51336,0.00026125,2]
[345557570,1734351040286,-12349.244482,0.000262,2]
[345557581,1734351043305,-10722.991789,0.000262,2]
[345557609,1734351046054,-194.0,0.00025,2]
[345557611,1734351046064,-1574.349,0.000262,2]
[345557613,1734351046079,-20817.99796,0.000262,2]
[345557614,1734351046109,-20135.648,0.000262,2]
[345557615,1734351046166,-10408.0,0.000262,2]
[345557774,1734352232261,-260.15,0.00023999,2]
[345557815,1734352238329,-39.85,0.00023999,2]
[345557816,1734352238338,-13116.17367963,0.00024,2]
[345557820,1734352240307,-16905.42113846,0.00024,2]
[345557821,1734352240317,-1862.62027787,0.0002479,2]
[345557822,1734352240326,-620.211,0.0002489,2]
[345557823,1734352240336,-170.0,0.00024932,2]
[345557824,1734352240345,-170.0,0.00025,2]
[345557825,1734352240355,-3450.14625203,0.00025,2]
[345557826,1734352240364,-832.76803853,0.00025,2]
[345557827,1734352240373,-9009.5097265,0.00025,2]
[345557828,1734352240382,-186.204663,0.00025119,2]
[345557829,1734352240392,-184.7619865,0.00025304,2]
[345557830,1734352240401,-160.0,0.0002546,3]
[345557831,1734352240411,-1862.62027783,0.0002552,2]
[345557832,1734352240420,-10757.32615532,0.0002561,120]
[345557833,1734352240429,-3218.810688,0.0002565,2]
[345557834,1734352240439,-400.0,0.00025753,2]
[345557835,1734352240448,-170.0,0.0002589,2]
[345557836,1734352240457,-695.1371532,0.00025937,4]
[345557837,1734352240469,-63479.83107343,0.00026,2]
[345557838,1734352240479,-2502.37409091,0.00026,2]
[345557839,1734352240488,-91582.25747842,0.00026,20]
[345557848,1734352243407,-301.47533266,0.00026,20]
[345557864,1734352246161,-5206.0,0.00026,20]
[345557865,1734352246225,-1958.9,0.00026,20]
[345557870,1734353103685,699.0,0.0002,3]
[345557871,1734353104008,698.0,0.0002,3]
[345557872,1734353104300,698.0,0.0002,3]
[345557873,1734353104640,698.0,0.0002,3]
[345557878,1734353208930,500.0,0.0002,3]
[345557916,1734353432377,-1041.46537606,0.00022861,2]
[345557918,1734353432387,-700.0152172,0.00023092,2]
[345557920,1734353432397,-1999.999999,0.00023856,5]
[345557921,1734353432407,-1868.0,0.000248,2]
[345557922,1734353432417,-585.78520974,0.0002489,2]
[345557923,1734353432438,-27.96479026,0.0002489,2]
[345557924,1734353432449,-170.0,0.00025,2]
[345557925,1734353432458,-351.6405177,0.00025,2]
[345557926,1734353432468,-309.3649371,0.00025123,2]
[345557927,1734353432477,-109.8472667,0.00025123,2]
[345557928,1734353432490,-268.3214863,0.00025123,2]
[345557929,1734353432500,-300.0,0.00025649,2]
[345557930,1734353432509,-300.0,0.00025649,2]
[345557931,1734353432519,-2575.0485504,0.0002565,2]
[345557932,1734353432529,-478.3802775,0.000257,2]
[345557933,1734353432539,-400.0,0.00025753,2]
[345557934,1734353432549,-701.52,0.00025813,15]
[345557935,1734353432559,-168.0,0.00025874,3]
[345557936,1734353432568,-168.0,0.00025874,3]
[345557937,1734353432578,-167.18,0.00025874,3]
[345557938,1734353432587,-170.0,0.0002589,2]
[345557939,1734353432596,-153.5496858,0.000259,2]
[345557940,1734353432624,-1243.41552259,0.000259,2]
[345557941,1734353432633,-347.5685766,0.00025937,4]
[345557943,1734353432642,-165.0,0.00025941,3]
[345557945,1734353432652,-165.0,0.00025941,3]
[345557946,1734353432662,-166.83,0.00025941,3]
[345557948,1734353432671,-166.0,0.0002595,3]
[345557950,1734353432680,-168.11,0.0002595,3]
[345557951,1734353432690,-2304.73874081,0.00025997,3]
[345557953,1734353432702,-775.696,0.00025997,3]
[345558002,1734353438549,-3235.08217126,0.00025997,3]
[345558003,1734353438559,-171.952,0.00025997,12]
[345558004,1734353438568,-12107.46582874,0.00026,20]
[345558005,1734353438580,-3446.11586305,0.00026,20]
[345558006,1734353438592,-72010.32862594,0.00026,30]
[345558007,1734353438602,-800.33755048,0.00026,2]
[345558008,1734353438611,-2575.0485504,0.0002615,2]
[345558009,1734353438621,-116168.16941013,0.000262,2]
[345558010,1734353438632,-350153.21707951,0.000262,2]
[345558011,1734353438642,-500.0,0.000262,2]
[345558012,1734353438652,-278.581,0.000262,2]
[345558013,1734353438661,-660.0,0.00026384,2]
[345558014,1734353438671,-32307.9084293,0.00026397,3]
[345558015,1734353438788,-1294.93270854,0.00026397,2]
[345558016,1734353438798,-179.96053706,0.00026397,2]
[345558017,1734353438807,-6084.89987528,0.00026397,7]
[345558018,1734353438819,-1396.96520837,0.00026471,2]
[345558019,1734353438829,-160.0,0.00026472,4]
[345558020,1734353438841,-500.0,0.00026473,2]
[345558021,1734353438850,-500.0,0.00026473,2]
[345558022,1734353438860,-500.57289371,0.00026473,2]
[345558023,1734353438870,-502.99118708,0.00026473,2]
[345558024,1734353438879,-500.0,0.00026473,2]
[345558025,1734353438888,-500.0,0.00026496,2]
[345558026,1734353438901,-500.0,0.00026496,2]
[345558027,1734353438910,-500.0,0.00026496,2]
[345558028,1734353438919,-500.0,0.00026496,2]
[345558029,1734353438929,-317.21611088,0.00026496,2]
[345558030,1734353438939,-500.0,0.00026496,2]
[345558031,1734353438948,-177.22663834,0.00026496,2]
[345558032,1734353438957,-342.53843002,0.00026496,2]
[345558033,1734353438967,-500.0,0.00026496,2]
[345558034,1734353438977,-531.54330384,0.00026496,2]
[345558035,1734353438986,-183.25699303,0.00026496,2]
[345558036,1734353438995,-500.0,0.00026496,2]
[345558037,1734353439005,-500.0,0.00026496,2]
[345558038,1734353439014,-500.0,0.00026496,2]
[345558039,1734353439023,-500.0,0.00026496,2]
[345558040,1734353439032,-500.0,0.00026496,2]
[345558041,1734353439042,-500.0,0.00026496,2]
[345558042,1734353439054,-502.38864971,0.00026496,2]
[345558043,1734353439063,-500.0,0.00026496,2]
[345558044,1734353439072,-500.0,0.00026496,2]
[345558045,1734353439081,-500.0,0.00026496,2]
[345558046,1734353439093,-500.0,0.00026496,2]
[345558047,1734353439102,-500.0,0.00026496,2]
[345558048,1734353439112,-500.0,0.00026496,2]
[345558049,1734353439121,-528.67444791,0.00026496,2]
[345558050,1734353439131,-500.0,0.00026496,2]
[345558051,1734353439140,-500.0,0.00026496,2]
[345558053,1734353439149,-500.0,0.00026496,2]
[345558054,1734353439159,-500.0,0.00026496,2]
[345558055,1734353439168,-500.0,0.00026496,2]
[345558056,1734353439177,-500.0,0.00026496,2]
[345558057,1734353439186,-500.0,0.00026496,2]
[345558058,1734353439195,-500.0,0.00026496,2]
[345558059,1734353439205,-229.49177457,0.00026496,2]
[345558060,1734353439214,-500.0,0.00026496,2]
[345558061,1734353439223,-500.0,0.00026496,2]
[345558062,1734353439233,-500.0,0.00026496,2]
[345558063,1734353439242,-500.0,0.00026496,2]
[345558064,1734353439251,-500.0,0.00026496,2]
[345558065,1734353439260,-44124.44199828,0.00026497,2]
[345558066,1734353439269,-1368.60659813,0.00026497,2]
[345558067,1734353439278,-58174.58613644,0.00026497,5]
[345558122,1734353446490,-16195.1163485,0.00026497,5]
[345558123,1734353446549,-5180.0,0.00026497,5]
[345558124,1734353446611,-116114.86791894,0.00026497,5]
[345558125,1734353493486,203.90435,0.00013973,2]
[345558131,1734354379924,169.009046,0.00013973,2]
[345558482,1734354641227,-518.0,0.00021888,2]
[345558484,1734354641239,-302.61226207,0.00021888,2]
[345558779,1734354643773,-1180.02738763,0.00021888,2]
[345558782,1734354643784,-5000.0,0.00022109,2]
[345558784,1734354643794,-313.89715463,0.00022786,2]
[345558786,1734354643805,-269.28,0.00023788,2]
[345558788,1734354643814,-300.0,0.00024869,2]
[345558790,1734354643824,-1380.15564038,0.0002487,2]
[345559025,1734354646636,-3114.8,0.0002487,2]
[345567336,1734355533266,184.975359,0.00013973,2]
[345567351,1734355708209,5071.54344334,0.0002,2]
[345567352,1734355718169,225.53543202,0.0002,7]
[345567395,1734355832744,-260.17100403,0.00022925,2]
[345567402,1734355832797,-4739.82899597,0.00022925,2]
[345567404,1734355832806,-162.70461181,0.00023767,2]
[345567406,1734355832815,-338.23003239,0.00023857,2]
[345567408,1734355832825,-300.0,0.00023866,2]
[345567410,1734355832834,-48437.06414675,0.00023867,2]
[345567412,1734355832843,-977.85218075,0.00023867,2]
[345567413,1734355832852,-20385.0443596,0.00023867,2]
[345567415,1734355832862,-1147.0,0.00024375,2]
[345567417,1734355832872,-162.7046118,0.00024789,2]
[345567419,1734355832881,-176.597164,0.0002485,2]
[345567421,1734355832891,-171.95244499,0.00024869,8]
[345567423,1734355832900,-8940.08545845,0.0002489,7]
[345567425,1734355832909,-625.43,0.0002517,2]
[345567427,1734355832918,-300.0,0.00025499,2]
[345567429,1734355832927,-2234.9318206,0.0002565,2]
[345567431,1734355832937,-400.0,0.00025753,2]
[345567433,1734355832946,-162.7046118,0.00025811,2]
[345567435,1734355832955,-420.0,0.00025884,2]
[345567437,1734355832964,-4000.0,0.00026,2]
[345567439,1734355832974,-10204.30600339,0.00026,7]
[345567441,1734355832985,-500.0,0.00026027,7]
[345567443,1734355832995,-500.0,0.00026027,7]
[345567446,1734355833004,-500.0,0.00026027,7]
[345567447,1734355833013,-500.0,0.00026027,7]
[345567449,1734355833023,-500.0,0.00026027,7]
[345567451,1734355833032,-500.0,0.00026027,7]
[345567453,1734355833042,-500.0,0.00026027,7]
[345567455,1734355833052,-500.0,0.00026027,7]
[345567457,1734355833062,-500.0,0.00026027,7]
[345567459,1734355833072,-500.0,0.00026027,7]
[345567461,1734355833082,-500.0,0.00026027,7]
[345567463,1734355833092,-500.0,0.00026027,7]
[345567465,1734355833101,-500.0,0.00026027,7]
[345567467,1734355833111,-500.0,0.00026027,7]
[345567469,1734355833124,-500.0,0.00026027,7]
[345567471,1734355833134,-500.0,0.00026027,7]
[345567473,1734355833144,-500.0,0.00026027,7]
[345567476,1734355833156,-500.0,0.00026027,7]
[345567478,1734355833166,-500.0,0.00026027,7]
[345567480,1734355833176,-500.0,0.00026027,7]
[345567482,1734355833186,-500.0,0.00026027,7]
[345567484,1734355833196,-500.0,0.00026027,7]
[345567486,1734355833206,-500.0,0.00026027,7]
[345567488,1734355833215,-481.77579494,0.00026027,7]
[345567489,1734355833225,-2234.9318206,0.0002615,2]
[345567490,1734355833237,-173.7842883,0.00026232,4]
[345567491,1734355833246,-166.0,0.00026289,3]
[345567492,1734355833256,-166.0,0.00026289,3]
[345567493,1734355833265,-166.0,0.00026289,3]
[345567494,1734355833275,-165.83,0.00026289,3]
[345567495,1734355833285,-2154.0,0.00026397,2]
[345567496,1734355833294,-533.0,0.00026397,2]
[345567498,1734355833304,-2368.0,0.00026397,2]
[345567500,1734355833313,-182.314,0.00026397,2]
[345567501,1734355833322,-224.775,0.00026397,2]
[345567504,1734355833332,-12973.39950077,0.00026397,3]
[345567506,1734355833342,-1315.97698842,0.00026398,2]
[345567508,1734355833352,-342.50374329,0.00026398,2]
[345567510,1734355833361,-342.50374325,0.00026399,2]
[345567512,1734355833371,-342.50374325,0.00026399,2]
[345567514,1734355833381,-342.50374325,0.000264,2]
[345567516,1734355833391,-4000.0,0.000264,2]
[345567518,1734355833400,-1000.0,0.000264,2]
[345567520,1734355833409,-342.50374325,0.000264,2]
[345567522,1734355833419,-318.0080823,0.000264,2]
[345567524,1734355833428,-318.00808228,0.000264,2]
[345567526,1734355833438,-318.00808228,0.000264,2]
[345567528,1734355833447,-318.00808228,0.000264,2]
[345567530,1734355833457,-160.0,0.00026472,3]
[345567532,1734355833466,-262.65124179,0.00026473,2]
[345567534,1734355833475,-166.0,0.00026481,3]
[345567536,1734355833486,-166.97,0.00026481,3]
[345567537,1734355833496,-20096.70903331,0.00026496,5]
[345567539,1734355833505,-500.0,0.00026496,2]
[345567541,1734355833514,-166.93207219,0.00026496,2]
[345567543,1734355833525,-445.80152198,0.00026496,2]
[345567546,1734355833536,-500.0,0.00026496,2]
[345567548,1734355833546,-500.0,0.00026496,2]
[345567550,1734355833564,-225.72703376,0.00026496,2]
[345567552,1734355833589,-247.72130828,0.00026496,2]
[345567554,1734355833599,-473691.12067355,0.00026497,5]
[345567556,1734355833608,-1247.40167786,0.00026498,2]
[345567558,1734355833618,-164283.58403551,0.00026499,2]
[345567560,1734355833628,-151.0,0.00026499,7]
[345567562,1734355833637,-167.843026,0.00026499,7]